bitfinex-derivatives/quotes_BTCF0:USTF0_20241214
["timestamp","ask_amount","ask_price","bid_price","bid_amount"]
[1734203809645,0.3933,101040.0,101030.0,0.049491]
[1734203809952,0.442787,101040.0,101030.0,0.049491]
[1734203811158,0.53178047,101040.0,101030.0,0.049491]
[1734203811352,0.53178047,101040.0,101020.0,0.049495]
[1734203811548,0.391,101030.0,101020.0,0.049495]
[1734203813060,0.4211,101030.0,101020.0,0.049495]
[1734203814552,0.4211,101030.0,101020.0,0.22655021]
[1734203814761,0.57467673,101030.0,101010.0,0.63116873]
[1734203814956,0.3608,101020.0,101010.0,0.27036873]
[1734203815354,0.3608,101020.0,101010.0,0.22705421]
[1734203815754,0.3608,101020.0,101010.0,0.22655421]
[1734203816656,0.3608,101020.0,101010.0,0.22705421]
[1734203817663,0.3608,101020.0,101010.0,0.22655421]
[1734203818161,0.410297,101020.0,101010.0,0.22655421]
[1734203818365,0.50436156,101020.0,101010.0,0.26987239]
[1734203818552,0.53626156,101020.0,101010.0,0.22655421]
[1734203818865,0.62525503,101020.0,101010.0,0.049999]
[1734203819659,0.62525503,101020.0,101010.0,0.22655421]
[1734203820656,0.26445503,101020.0,101010.0,0.22705421]
[1734203820963,0.17039047,101020.0,101010.0,0.22705421]
[1734203821758,0.26445503,101020.0,101010.0,0.22655421]
[1734203822066,0.74387066,101020.0,101010.0,0.17705521]
[1734203822469,0.049502,101010.0,101000.0,0.46263483]
[1734203822760,0.65656491,101010.0,101000.0,0.22656121]
[1734203823556,0.65656491,101010.0,101000.0,0.049506]
[1734203823766,0.56250035,101010.0,101000.0,0.22656121]
[1734203824566,0.65656491,101010.0,101000.0,0.049506]
[1734203824954,0.65656491,101010.0,101000.0,0.22656121]
[1734203825157,0.56776656,101010.0,101000.0,0.049506]
[1734203825663,0.4242,101010.0,101000.0,0.14357056]
[1734203825974,0.53099635,101020.0,101010.0,0.049502]
[1734203826370,0.62506091,101020.0,101010.0,0.049502]
[1734203826763,0.62506091,101020.0,101010.0,0.050002]
[1734203827968,0.62506091,101020.0,101010.0,0.0005]
[1734203828368,0.74367654,101020.0,101010.0,0.0005]
[1734203828761,0.65487819,101020.0,101010.0,0.0005]
[1734203829663,0.74357927,101020.0,101010.0,0.0005]
[1734203829971,0.65487819,101020.0,101010.0,0.0005]
[1734203830855,0.29407819,101020.0,101010.0,0.0005]
[1734203831060,1.01567819,101020.0,101010.0,0.0005]
[1734203831572,1.16397077,101020.0,101010.0,0.0005]
[1734203831761,1.34535514,101020.0,101010.0,0.0005]
[1734203831961,1.04535514,101020.0,101010.0,0.0005]
[1734203832169,0.049507,101000.0,100990.0,0.22186542]
[1734203832361,0.59313511,101000.0,100990.0,0.00148504]
[1734203832564,0.98703511,101000.0,100990.0,0.00148504]
[1734203834863,1.10538652,101000.0,100990.0,0.00148504]
[1734203836274,0.049517,100980.0,100970.0,0.53625933]
[1734203837365,0.049517,100980.0,100970.0,0.30018571]
[1734203838166,0.049517,100980.0,100970.0,0.25685108]
[1734203838368,0.049517,100980.0,100970.0,0.30018646]
[1734203839276,0.049517,100980.0,100970.0,0.25685108]
[1734203839767,0.049517,100980.0,100970.0,0.25735108]
[1734203841179,0.049517,100980.0,100970.0,0.4934247]
[1734203841380,0.049517,100980.0,100970.0,0.25735108]
[1734203842181,0.049517,100980.0,100970.0,0.4934247]
[1734203842479,0.049517,100980.0,100970.0,0.25735108]
[1734203843273,0.049517,100980.0,100970.0,0.4934247]
[1734203843994,0.05936751,100980.0,100970.0,0.4934247]
[1734203851181,0.1211685,100980.0,100970.0,0.4934247]
[1734203851884,0.1211685,100980.0,100970.0,0.53676001]
[1734203852486,0.1211685,100980.0,100970.0,0.598561]
[1734203852988,0.1211685,100980.0,100970.0,0.53676001]
[1734203854386,0.20989895,100980.0,100970.0,0.53676001]
[1734203854583,0.20989895,100980.0,100970.0,0.3597048]
[1734203854777,0.20989895,100980.0,100970.0,0.31636949]
[1734203856088,0.14809796,100980.0,100970.0,0.31636949]
[1734203857995,0.08873045,100980.0,100970.0,0.37817048]
[1734203858197,0.76568744,100990.0,100970.0,0.98341188]
[1734203858387,0.76568744,100990.0,100980.0,0.5877249]
[1734203858388,0.61739486,100990.0,100980.0,0.5877249]
[1734203858696,0.67919585,100990.0,100980.0,0.56925882]
[1734203859087,0.67919585,100990.0,100980.0,0.39165289]
[1734203859398,0.67919585,100990.0,100980.0,0.68736904]
[1734203859589,0.67919585,100990.0,100980.0,0.6440371]
[1734203859791,0.67969585,100990.0,100980.0,0.34832095]
[1734203860192,0.67969585,100990.0,100980.0,0.6440371]
[1734203860394,0.5909654,100990.0,100980.0,0.65546562]
[1734203860783,0.5904654,100990.0,100980.0,0.65546562]
[1734203861394,0.5904654,100990.0,100980.0,0.71726661]
[1734203861902,0.5909654,100990.0,100980.0,0.71726661]
[1734203862789,0.5904654,100990.0,100980.0,0.71726661]
[1734203863191,0.5904654,100990.0,100980.0,0.76059855]
[1734203863192,0.67950756,100990.0,100980.0,0.76059855]
[1734203863794,0.68000756,100990.0,100980.0,0.76059855]
[1734203863994,0.68000756,100990.0,100980.0,0.76060814]
[1734203864496,0.80105897,100990.0,100980.0,0.8245132]
[1734203864692,0.68410657,100990.0,100980.0,0.23722305]
[1734203865092,0.86221907,100990.0,100980.0,0.4584916]
[1734203865692,0.68460657,100990.0,100980.0,0.23722305]
[1734203866796,0.68410657,100990.0,100980.0,0.23722305]
[1734203867298,0.71649016,100990.0,100980.0,0.23722305]
[1734203867793,0.71699016,100990.0,100980.0,0.23722305]
[1734203868696,0.71649016,100990.0,100980.0,0.23722305]
[1734203868898,0.89460266,100990.0,100980.0,0.41522683]
[1734203869100,0.74631008,100990.0,100980.0,0.45856233]
[1734203869298,0.74631008,100990.0,100980.0,0.22133928]
[1734203869700,0.77570555,100990.0,100980.0,0.0433355]
[1734203869896,0.77570555,100990.0,100970.0,0.17807865]
[1734203870197,0.86143596,100980.0,100970.0,0.45864342]
[1734203870398,0.86143596,100980.0,100970.0,0.22142037]
[1734203870895,0.95562054,100980.0,100970.0,0.22142037]
[1734203871800,0.86143596,100980.0,100970.0,0.22142037]
[1734203872397,0.6833263,100980.0,100970.0,0.22142037]
[1734203873197,0.6833263,100980.0,100970.0,0.17807865]
[1734203873506,0.6833263,100980.0,100970.0,0.2214194]
[1734203874398,0.6833263,100980.0,100970.0,0.17807865]
[1734203878005,0.69310616,100980.0,100970.0,0.17807865]
[1734203879397,0.69310616,100980.0,100970.0,7.487e-05]
[1734203879598,0.69310616,100980.0,100970.0,0.17807865]
[1734203880401,0.33230616,100980.0,100970.0,0.17807865]
[1734203880600,1.05390616,100980.0,100970.0,0.17807865]
[1734203882307,1.05390616,100980.0,100970.0,7.487e-05]
[1734203884611,1.07332413,100980.0,100970.0,0.17807865]
[1734203887412,1.04292413,100980.0,100970.0,0.17807865]
[1734203887711,0.410812,100990.0,100980.0,0.049517]
[1734203887911,0.3613,100990.0,100980.0,0.09285933]
[1734203888098,0.3613,100990.0,100980.0,0.21914391]
[1734203888305,0.3613,100990.0,100980.0,0.12495933]
[1734203888605,0.3613,100990.0,100980.0,0.65769392]
[1734203888907,0.3608,100990.0,100980.0,0.65769392]
[1734203889218,0.3608,100990.0,100980.0,0.7194783]
[1734203889807,0.49969238,100990.0,100980.0,0.42351464]
[1734203890611,0.49969238,100990.0,100980.0,0.36173026]
[1734203890813,0.56097676,100990.0,100980.0,0.44641607]
[1734203891005,0.67948393,100990.0,100980.0,0.22087812]
[1734203891200,0.67948393,100990.0,100980.0,0.17754514]
[1734203891411,0.68955057,100990.0,100980.0,0.17754514]
[1734203891917,0.69005057,100990.0,100980.0,0.17754514]
[1734203892122,0.62826619,100990.0,100980.0,0.28884652]
[1734203892310,0.69005057,100990.0,100980.0,0.52561745]
[1734203892710,0.68955057,100990.0,100980.0,0.52561745]
[1734203893113,0.68955057,100990.0,100980.0,0.46383307]
[1734203893414,0.62776619,100990.0,100980.0,0.46383307]
[1734203893809,0.62826619,100990.0,100980.0,0.46383307]
[1734203894717,0.62776619,100990.0,100980.0,0.46383307]
[1734203895012,0.72192355,100990.0,100980.0,0.41431607]
[1734203895222,0.72192355,100990.0,100980.0,0.17754514]
[1734203895516,0.6656356,100990.0,100980.0,0.17754514]
[1734203895717,0.81426957,100990.0,100980.0,0.17754514]
[1734203895910,0.6661356,100990.0,100980.0,0.17754514]
[1734203896304,0.81426957,100990.0,100980.0,0.17754514]
[1734203896511,0.84506957,100990.0,100980.0,0.17754514]
[1734203896706,0.049517,100980.0,100970.0,0.17762001]
[1734203896916,0.80207353,100980.0,100970.0,0.22096098]
[1734203897116,0.80207353,100980.0,100970.0,0.17762001]
[1734203900521,0.70791617,100980.0,100970.0,0.17762001]
[1734203900815,0.4793652,100980.0,100970.0,0.32129937]
[1734203901115,0.08892808,100980.0,100970.0,1.01766908]
[1734203901321,0.66046635,100990.0,100970.0,1.09056886]
[1734203901520,0.66046635,100990.0,100980.0,0.41453368]
[1734203901713,0.66096635,100990.0,100980.0,0.4578713]
[1734203902107,0.66096635,100990.0,100980.0,0.41453368]
[1734203902720,0.66046635,100990.0,100980.0,0.41453368]
[1734203903813,0.66096635,100990.0,100980.0,0.41453368]
[1734203904719,0.66046635,100990.0,100980.0,0.41453368]
[1734203905731,0.66096635,100990.0,100980.0,0.41453368]
[1734203906826,0.66046635,100990.0,100980.0,0.41453368]
[1734203907820,0.66096635,100990.0,100980.0,0.41453368]
[1734203908419,0.62836635,100990.0,100980.0,0.46405068]
[1734203908630,0.21805235,100990.0,100980.0,0.50738438]
[1734203908825,0.6039259,100990.0,100980.0,0.23687639]
[1734203909028,0.7533911,100990.0,100980.0,0.45794263]
[1734203909228,0.8444276,100990.0,100980.0,0.17773254]
[1734203909440,0.7258624,100990.0,100980.0,0.17773254]
[1734203909641,0.049517,100980.0,100970.0,0.4151838]
[1734203909829,0.74304932,100980.0,100970.0,0.4151838]
[1734203910029,0.55997412,100980.0,100970.0,0.4151838]
[1734203910241,0.52887412,100980.0,100970.0,0.4647058]
[1734203910433,0.61779083,100980.0,100970.0,0.28697326]
[1734203911927,0.61779083,100980.0,100970.0,0.46482713]
[1734203912641,0.61779083,100980.0,100970.0,0.28697326]
[1734203912845,0.61779083,100980.0,100970.0,0.46483678]
[1734203913045,0.61779083,100980.0,100970.0,0.28697326]
[1734203914135,0.61779083,100980.0,100970.0,0.33031179]
[1734203914534,0.61779083,100980.0,100970.0,0.28697326]
[1734203914745,0.61779083,100980.0,100970.0,0.46487362]
[1734203914933,0.52887412,100980.0,100970.0,0.28697326]
[1734203917141,0.62303148,100980.0,100970.0,0.23745126]
[1734203917340,0.65373148,100980.0,100970.0,0.23745126]
[1734203917537,0.65373148,100980.0,100970.0,0.41541175]
[1734203917741,0.80186545,100980.0,100970.0,0.41541175]
[1734203919529,0.80186545,100980.0,100970.0,0.23745126]
[1734203919735,0.80186545,100980.0,100970.0,0.41543117]
[1734203920746,0.80186545,100980.0,100970.0,0.41493117]
[1734203921147,0.76952041,100980.0,100970.0,0.41493117]
[1734203921647,0.76952041,100980.0,100970.0,0.23695126]
[1734203922949,0.83133273,100980.0,100970.0,0.23695126]
[1734203924247,0.76952041,100980.0,100970.0,0.23695126]
[1734203925548,0.65096329,100980.0,100970.0,0.23695126]
[1734203926049,0.29016329,100980.0,100970.0,0.23695126]
[1734203926244,0.65096329,100980.0,100970.0,0.23695126]
[1734203927049,0.71277561,100980.0,100970.0,0.23695126]
[1734203927552,0.71277561,100980.0,100970.0,0.41489697]
[1734203927851,0.7424024,100980.0,100970.0,0.17802058]
[1734203928036,0.7424024,100980.0,100970.0,7.487e-05]
[1734203928636,0.89074101,100980.0,100970.0,0.17802058]
[1734203929545,0.89074101,100980.0,100970.0,7.487e-05]
[1734203929950,0.71298025,100980.0,100970.0,0.17802058]
[1734203932550,0.80421472,100980.0,100970.0,7.487e-05]
[1734203932853,0.7424024,100980.0,100970.0,7.487e-05]
[1734203933253,0.80421472,100980.0,100970.0,7.487e-05]
[1734203934340,0.95248636,100980.0,100970.0,7.487e-05]
[1734203934549,0.80421472,100980.0,100970.0,7.487e-05]
[1734203935049,0.80436725,100980.0,100950.0,0.4148221]
[1734203935346,0.80436725,100980.0,100950.0,0.280224]
[1734203935347,0.74151141,100960.0,100950.0,0.280224]
[1734203935746,0.74151141,100960.0,100950.0,0.23687639]
[1734203936152,0.74158628,100960.0,100950.0,0.23687639]
[1734203936355,0.74158628,100960.0,100950.0,0.41478452]
[1734203936650,0.77208628,100960.0,100950.0,0.41478452]
[1734203939454,0.77208628,100960.0,100950.0,0.23687639]
[1734203939649,0.77208628,100960.0,100950.0,0.41476338]
[1734203940249,0.77208628,100960.0,100950.0,0.45811142]
[1734203940650,0.77208628,100960.0,100950.0,0.41476338]
[1734203940847,0.11868045,100960.0,100950.0,0.29868871]
[1734203941161,7.487e-05,100960.0,100950.0,1.45771776]
[1734203941456,0.06188719,100960.0,100950.0,1.16390967]
[1734203942047,0.11141419,100960.0,100950.0,1.16389698]
[1734203942243,0.04960187,100960.0,100950.0,1.16389698]
[1734203943352,0.11141419,100960.0,100950.0,1.16389698]
[1734203943854,0.04960187,100960.0,100950.0,1.16439698]
[1734203946262,0.04960187,100960.0,100950.0,1.17437256]
[1734203946463,0.04960187,100960.0,100950.0,0.87812253]
[1734203947359,0.04960187,100960.0,100950.0,1.18670052]
[1734203947556,0.13842892,100970.0,100950.0,1.49234412]
[1734203947756,0.049524,100970.0,100960.0,1.12441493]
[1734203947961,0.049524,100970.0,100960.0,1.43886163]
[1734203949456,0.049524,100970.0,100960.0,1.07806163]
[1734203949663,0.11133632,100970.0,100960.0,1.07828127]
[1734203949858,0.11133632,100970.0,100960.0,1.07834167]
[1734203950158,0.11133632,100970.0,100960.0,0.76954225]
[1734203950365,0.049524,100970.0,100960.0,0.76954225]
[1734203950553,0.049524,100970.0,100960.0,1.06595159]
[1734203951467,0.049524,100970.0,100960.0,0.76954225]
[1734203951666,0.049524,100970.0,100960.0,1.14014599]
[1734203951865,0.049524,100970.0,100960.0,0.83135457]
[1734203952660,0.049524,100970.0,100960.0,0.83133558]
[1734203953053,0.049524,100970.0,100960.0,0.76952326]
[1734203953256,0.11133632,100970.0,100960.0,1.26330098]
[1734203953455,0.56104124,100970.0,100960.0,0.5553895]
[1734203953659,0.56104124,100970.0,100960.0,0.79251174]
[1734203953959,0.56104124,100970.0,100960.0,0.41495728]
[1734203953960,0.71018871,100970.0,100960.0,0.41495728]
[1734203954164,0.71018871,100970.0,100960.0,0.45830165]
[1734203954762,0.71018871,100970.0,100960.0,0.41495728]
[1734203955563,0.6212419,100970.0,100960.0,0.46448428]
[1734203956267,0.5907419,100970.0,100960.0,0.46448428]
[1734203956462,0.16812958,100970.0,100960.0,0.5262966]
[1734203956670,0.16812958,100970.0,100960.0,0.94738854]
[1734203956671,0.13847921,100970.0,100960.0,0.94738854]
[1734203956859,0.13847921,100970.0,100960.0,0.7102663]
[1734203957060,0.049524,100970.0,100960.0,0.7102663]
[1734203957368,0.13847921,100970.0,100960.0,0.64845398]
[1734203958069,0.049524,100970.0,100960.0,0.64845398]
[1734203959465,0.049524,100970.0,100960.0,0.64849116]
[1734203961260,0.13847921,100970.0,100960.0,0.64849116]
[1734203961456,0.049524,100970.0,100960.0,0.64849116]
[1734203961656,0.410324,100970.0,100960.0,0.64849116]
[1734203961862,0.49927921,100970.0,100960.0,0.8855109]
[1734203962066,0.49927921,100970.0,100960.0,0.64849116]
[1734203962374,0.13847921,100970.0,100960.0,0.64849116]
[1734203963878,0.08895521,100970.0,100960.0,0.7426751]
[1734203964176,0.62847134,100980.0,100970.0,0.049522]
[1734203964362,0.50986576,100980.0,100970.0,0.36197061]
[1734203964865,0.50936576,100980.0,100970.0,0.36197061]
[1734203965367,0.50936576,100980.0,100970.0,0.45615455]
[1734203965368,0.62797134,100980.0,100970.0,0.45615455]
[1734203965765,0.62797134,100980.0,100970.0,0.41281003]
[1734203966073,0.62847134,100980.0,100970.0,0.41281003]
[1734203966263,0.50986576,100980.0,100970.0,0.41281003]
[1734203966459,0.50986576,100980.0,100970.0,0.74015028]
[1734203966460,0.62847134,100980.0,100970.0,0.74015028]
[1734203966659,0.08945521,100980.0,100970.0,0.76188947]
[1734203966862,0.08895521,100980.0,100970.0,0.83722755]
[1734203967170,0.68087379,100990.0,100970.0,0.83722755]
[1734203967475,0.59191858,100990.0,100980.0,0.46421667]
[1734203968162,0.68086119,100990.0,100980.0,0.46421667]
[1734203968363,0.59191858,100990.0,100980.0,0.28648824]
[1734203968572,0.59191858,100990.0,100980.0,0.38067218]
[1734203969175,0.60172841,100990.0,100980.0,0.38067218]
[1734203969369,0.6906807,100990.0,100980.0,0.38067218]
[1734203969571,0.60172841,100990.0,100980.0,0.38067218]
[1734203969968,0.17792841,100990.0,100980.0,0.38067218]
[1734203970273,0.14992986,100990.0,100980.0,0.69853244]
[1734203971867,0.10041686,100990.0,100980.0,0.74186344]
[1734203972069,0.09060703,100990.0,100980.0,0.74186344]
[1734203972468,0.00163582,100990.0,100980.0,1.16210989]
[1734203974271,0.00163582,100990.0,100980.0,1.45797532]
[1734203974868,0.00213582,100990.0,100980.0,1.45797532]
[1734203975565,0.00213582,100990.0,100980.0,1.10218862]
[1734203976779,0.00213582,100990.0,100980.0,1.10138776]
[1734203978074,0.00213582,100990.0,100980.0,1.1955717]
[1734203979071,0.00213582,100990.0,100980.0,1.5513584]
[1734203979278,0.00213582,100990.0,100980.0,1.1955717]
[1734203980274,0.00213582,100990.0,100980.0,1.10138776]
[1734203980981,0.00213582,100990.0,100980.0,1.05805676]
[1734203981274,0.00213582,100990.0,100980.0,1.05791192]
[1734203981478,0.00213582,100990.0,100980.0,1.06779882]
[1734203982578,0.05164782,100990.0,100980.0,1.06779882]
[1734203982776,0.05164782,100990.0,100980.0,0.68600444]
[1734203982971,0.05164782,100990.0,100980.0,0.39013901]
[1734203983174,0.05164782,100990.0,100980.0,0.38025211]
[1734203984377,0.41244782,100990.0,100980.0,0.38025211]
[1734203986079,0.00213582,100990.0,100980.0,1.29424745]
[1734203986281,0.00213582,100990.0,100980.0,1.05769628]
[1734203988376,0.00213582,100990.0,100980.0,1.10102433]
[1734203989891,0.00163582,100990.0,100980.0,1.10102433]
[1734203990489,0.00163582,100990.0,100980.0,1.56215234]
[1734203990695,0.00163582,100990.0,100980.0,1.25512954]
[1734203990886,0.00163582,100990.0,100980.0,1.56215234]
[1734203991085,0.00163582,100990.0,100980.0,1.25512954]
[1734203991386,0.00163582,100990.0,100980.0,1.49729786]
[1734203993282,0.00163582,100990.0,100980.0,1.56200002]
[1734203993483,0.00163582,100990.0,100980.0,1.46789224]
[1734203993889,0.00163582,100990.0,100980.0,1.16086944]
[1734203994185,0.00163582,100990.0,100980.0,1.4664234]
[1734203995495,0.00163582,100990.0,100980.0,1.1056234]
[1734203995787,0.00163582,100990.0,100980.0,1.4664234]
[1734203997595,0.00163582,100990.0,100980.0,1.1106367]
[1734203998183,0.00163582,100990.0,100980.0,1.11055765]
[1734203998576,0.00163582,100990.0,100980.0,1.13014023]
[1734204001089,0.00163582,100990.0,100980.0,1.13078488]
[1734204001283,0.00163582,100990.0,100980.0,1.48640452]
[1734204002089,0.41194782,100990.0,100980.0,0.65629452]
[1734204002299,0.15640703,100990.0,100980.0,1.10604956]
[1734204002491,0.09060703,100990.0,100980.0,1.10604956]
[1734204003392,0.09060703,100990.0,100980.0,1.56095734]
[1734204003586,0.00163582,100990.0,100980.0,1.20531008]
[1734204003787,0.00163582,100990.0,100980.0,1.1112023]
[1734204004290,0.00163582,100990.0,100980.0,1.46680445]
[1734204005788,0.09060703,100990.0,100980.0,1.46680445]
[1734204006895,0.00163582,100990.0,100980.0,1.46680445]
[1734204007095,0.09060703,100990.0,100980.0,1.46680445]
[1734204008102,0.00163582,100990.0,100980.0,1.46680445]
[1734204012804,0.00163582,100990.0,100980.0,1.46523779]
[1734204013099,0.00163582,100990.0,100980.0,1.91809255]
[1734204013302,0.0005,101000.0,100990.0,0.17299832]
[1734204013500,0.0005,101000.0,100990.0,1.23250918]
[1734204013703,0.0005,101000.0,100990.0,1.64685831]
[1734204014001,0.24077679,101010.0,101000.0,0.049507]
[1734204014308,0.08897121,101010.0,101000.0,1.49466037]
[1734204015499,0.08897121,101010.0,101000.0,1.18908816]
[1734204016306,0.08897121,101010.0,101000.0,1.4851781]
[1734204017702,0.08897121,101010.0,101000.0,1.48469989]
[1734204019913,0.08947121,101010.0,101000.0,1.48469989]
[1734204020301,0.0005,101010.0,101000.0,1.49445107]
[1734204020606,0.08947121,101010.0,101000.0,1.49445107]
[1734204021111,0.0005,101010.0,101000.0,1.49445107]
[1734204022308,0.0005,101010.0,101000.0,1.01533584]
[1734204022609,0.16937321,101010.0,101000.0,0.66319977]
[1734204022804,0.56047321,101010.0,101000.0,0.66319977]
[1734204023110,0.56047321,101010.0,101000.0,0.72494293]
[1734204023906,0.62221637,101010.0,101000.0,0.83825983]
[1734204024107,0.74082195,101010.0,101000.0,0.46393091]
[1734204024399,0.74082195,101010.0,101000.0,0.52567407]
[1734204024609,0.74082195,101010.0,101000.0,0.46393091]
[1734204024911,0.80010772,101010.0,101000.0,0.22712769]
[1734204025113,0.73836456,101010.0,101000.0,0.28887085]
[1734204025315,0.54060558,101010.0,101000.0,0.52567407]
[1734204025705,0.54060558,101010.0,101000.0,0.58741723]
[1734204026010,0.62954075,101010.0,101000.0,0.58741723]
[1734204026313,0.6790431,101010.0,101000.0,0.40979654]
[1734204026716,0.6790431,101010.0,101000.0,0.34805338]
[1734204027413,0.3182431,101010.0,101000.0,0.34805338]
[1734204027616,0.6790431,101010.0,101000.0,0.34805338]
[1734204029917,0.59010758,101010.0,101000.0,0.34805338]
[1734204030517,0.22930758,101010.0,101000.0,0.34805338]
[1734204030817,0.59010758,101010.0,101000.0,0.34805338]
[1734204032327,0.54060558,101010.0,101000.0,0.40979654]
[1734204032518,0.11984844,101010.0,101000.0,1.36626853]
[1734204032817,0.0005,101010.0,101000.0,1.48509422]
[1734204033007,0.0005,101010.0,101000.0,1.49435697]
[1734204034511,0.0005,101010.0,101000.0,1.49378816]
[1734204035409,0.0005,101010.0,101000.0,1.55553132]
[1734204035620,0.66403927,101030.0,101020.0,0.049497]
[1734204035811,0.66403927,101030.0,101020.0,0.83734294]
[1734204035812,0.54543369,101030.0,101020.0,0.83734294]
[1734204036116,0.09043369,101030.0,101020.0,1.0850583]
[1734204036321,0.00148525,101030.0,101020.0,1.0850583]
[1734204037118,0.00148525,101030.0,101020.0,0.96157198]
[1734204037323,0.00148525,101030.0,101020.0,1.05563377]
[1734204039319,0.00148525,101030.0,101020.0,1.29193341]
[1734204039724,0.00148525,101030.0,101020.0,1.33525905]
[1734204040127,0.4595533,101040.0,101030.0,0.049492]
[1734204040323,0.4595533,101040.0,101030.0,0.32077484]
[1734204041328,0.44974844,101040.0,101030.0,0.32077484]
[1734204042123,0.08894844,101040.0,101030.0,0.32077484]
[1734204042425,0.18444844,101050.0,101040.0,0.049487]
[1734204042621,0.0955,101050.0,101040.0,0.55695724]
[1734204044321,0.0955,101050.0,101040.0,0.3206576]
[1734204044928,0.5092483,101060.0,101050.0,0.049482]
[1734204045128,0.42029986,101060.0,101050.0,0.3206526]
[1734204045329,0.42029986,101060.0,101050.0,0.14354379]
[1734204045630,0.42029986,101060.0,101050.0,0.3206526]
[1734204046330,0.42029986,101060.0,101050.0,0.049482]
[1734204050032,0.42079986,101060.0,101050.0,0.049482]
[1734204057133,0.42079986,101060.0,101050.0,0.11118558]
[1734204058238,0.42079986,101060.0,101050.0,0.28829439]
[1734204061238,0.54420702,101060.0,101050.0,0.17710881]
[1734204061541,0.049482,101050.0,101040.0,0.41340845]
[1734204061737,0.506882,101050.0,101040.0,0.23881239]
[1734204062235,0.65753402,101050.0,101040.0,0.41340845]
[1734204064238,0.7761396,101050.0,101040.0,0.41340845]
[1734204065240,0.7761396,101050.0,101040.0,0.23629964]
[1734204068254,0.68719116,101050.0,101040.0,0.23629964]
[1734204068437,0.68719116,101050.0,101040.0,0.29800322]
[1734204068748,0.62548758,101050.0,101040.0,0.29800322]
[1734204069845,0.62548758,101050.0,101040.0,0.34749022]
[1734204070047,0.68719116,101050.0,101040.0,0.23629964]
[1734204070851,0.68719116,101050.0,101040.0,0.41400341]
[1734204071053,0.83544814,101050.0,101040.0,0.41450341]
[1734204072354,0.74164456,101050.0,101040.0,0.41450341]
[1734204072653,0.80334814,101050.0,101040.0,0.41450341]
[1734204073356,0.80334814,101050.0,101040.0,0.41558903]
[1734204073764,0.68474256,101050.0,101040.0,0.17928939]
[1734204074663,0.68474256,101050.0,101040.0,0.12941618]
[1734204074664,1.04644614,101050.0,101040.0,0.12941618]
[1734204074963,1.07610245,101050.0,101020.0,0.23778412]
[1734204075167,1.01308014,101030.0,101020.0,0.23778412]
[1734204075365,0.049497,101020.0,101010.0,0.23629964]
[1734204075557,0.049502,101010.0,101000.0,0.23629964]
[1734204075864,0.67946346,101010.0,100990.0,0.53201334]
[1734204076066,0.50381058,101000.0,100990.0,0.57534289]
[1734204076261,0.50381058,101000.0,100990.0,0.27962919]
[1734204076472,0.59267675,101000.0,100990.0,0.23629964]
[1734204076666,0.50381058,101000.0,100990.0,0.23629964]
[1734204077055,0.442107,101000.0,100990.0,0.11121558]
[1734204077262,0.442107,101000.0,100990.0,0.28581164]
[1734204077561,0.442107,101000.0,100990.0,0.049512]
[1734204078361,0.442107,101000.0,100980.0,0.78057682]
[1734204078362,0.049512,100990.0,100980.0,0.78057682]
[1734204078563,0.049512,100990.0,100980.0,0.48486312]
[1734204079270,0.049512,100990.0,100980.0,0.4415326]
[1734204079866,0.410312,100990.0,100980.0,0.4415326]
[1734204080666,0.410312,100990.0,100980.0,0.20523296]
[1734204085366,0.049512,100990.0,100980.0,0.20523296]
[1734204085767,0.3926,101000.0,100980.0,0.20523296]
[1734204086067,0.442109,101000.0,100990.0,0.050012]
[1734204094966,0.53624833,101000.0,100990.0,0.0005]
[1734204095168,0.56914833,101000.0,100990.0,0.0005]
[1734204095778,0.60164833,101000.0,100990.0,0.0005]
[1734204095977,0.9905145,101000.0,100990.0,0.0005]
[1734204096179,1.10910621,101000.0,100990.0,0.0005]
[1734204099385,1.13857578,101000.0,100990.0,0.0005]
[1734204099586,1.04970961,101000.0,100990.0,0.0005]
[1734204100473,0.89793584,101000.0,100990.0,0.0005]
[1734204100679,0.77659001,101000.0,100990.0,0.0005]
[1734204101183,0.049512,100990.0,100980.0,0.14150008]
[1734204101484,0.47211645,100990.0,100980.0,0.14150008]
[1734204102183,0.47211645,100990.0,100980.0,0.14200008]
[1734204103077,0.47211645,100990.0,100980.0,0.14150008]
[1734204103479,0.5608013,100990.0,100980.0,0.37779972]
[1734204103984,0.5608013,100990.0,100980.0,0.37829972]
[1734204104184,0.5608013,100990.0,100980.0,0.42163463]
[1734204104686,0.67939301,100990.0,100980.0,0.42163463]
[1734204105079,0.67939301,100990.0,100980.0,0.42113463]
[1734204105578,0.61758856,100990.0,100980.0,0.67351342]
[1734204105783,0.61758856,100990.0,100980.0,0.94159089]
[1734204105980,0.61758856,100990.0,100980.0,0.94209089]
[1734204107689,0.61758856,100990.0,100980.0,0.76747416]
[1734204107690,0.44948485,100990.0,100980.0,0.76747416]
[1734204107886,0.44948485,100990.0,100980.0,1.19816512]
[1734204108191,0.49949385,101000.0,100990.0,0.049512]
[1734204108486,0.49949385,101000.0,100990.0,0.71912243]
[1734204108687,0.49949385,101000.0,100990.0,0.75102243]
[1734204110479,0.49949385,101000.0,100990.0,0.7509253]
[1734204111988,0.49899385,101000.0,100990.0,0.7509253]
[1734204112390,0.13819385,101000.0,100990.0,1.10578174]
[1734204112588,0.049509,101000.0,100990.0,1.10578174]
[1734204113984,0.049509,101000.0,100990.0,1.04397729]
[1734204114384,0.049509,101000.0,100990.0,1.10578174]
[1734204116589,0.049509,101000.0,100990.0,0.7509253]
[1734204118294,0.049509,101000.0,100990.0,0.70759078]
[1734204120894,0.6272752,101010.0,101000.0,0.049507]
[1734204121088,0.50918349,101010.0,101000.0,0.42212076]
[1734204121294,0.50918349,101010.0,101000.0,0.36031631]
[1734204121594,0.50918349,101010.0,101000.0,0.42212076]
[1734204121991,0.50868349,101010.0,101000.0,0.42212076]
[1734204122186,0.50868349,101010.0,101000.0,0.37878624]
[1734204123095,0.50918349,101010.0,101000.0,0.37878624]
[1734204124098,0.50868349,101010.0,101000.0,0.37878624]
[1734204125097,0.50918349,101010.0,101000.0,0.37878624]
[1734204126995,0.49948885,101010.0,101000.0,0.44059069]
[1734204127198,0.49948885,101010.0,101000.0,0.50013143]
[1734204127199,0.44998485,101010.0,101000.0,0.50013143]
[1734204127393,0.0005,101010.0,101000.0,0.84267177]
[1734204127599,0.0005,101010.0,101000.0,1.22035577]
[1734204127895,0.0005,101010.0,101000.0,1.58115577]
[1734204128287,0.50889692,101030.0,101020.0,0.049497]
[1734204128493,0.42021207,101030.0,101020.0,0.34800368]
[1734204128689,0.50889692,101030.0,101020.0,0.34800368]
[1734204128905,0.42021207,101030.0,101020.0,0.40980813]
[1734204129402,0.05941207,101030.0,101020.0,0.64388146]
[1734204129602,0.05941207,101030.0,101020.0,0.91158482]
[1734204129999,0.05941207,101030.0,101020.0,0.9115914]
[1734204130189,0.05941207,101030.0,101020.0,0.40980813]
[1734204130504,0.05941207,101030.0,101020.0,0.70568591]
[1734204130694,0.05941207,101030.0,101020.0,0.40980813]
[1734204131404,0.42021207,101030.0,101020.0,0.37990368]